bitfinex/quotes_ETHUSD_20250511
["timestamp","ask_amount","ask_price","bid_price","bid_amount"]
[1746948181753,0.21826245,2493.6,2492.8,0.46707711]
[1746948181929,0.21826245,2493.6,2492.9,0.1127]
[1746948181930,4.0104382,2493.5,2492.9,0.1127]
[1746948182132,4.01058941,2493.4,2492.9,0.1127]
[1746948182440,0.21826245,2493.6,2492.9,0.1127]
[1746948182640,0.21826245,2493.3,2492.9,0.1127]
[1746948183143,0.21826245,2493.3,2492.9,0.58637804]
[1746948183457,4.01044657,2493.5,2492.9,0.58637804]
[1746948183849,8.0,2493.7,2492.9,0.58637804]
[1746948184167,8.0,2493.7,2492.8,4.157]
[1746948184168,4.01139235,2492.9,2492.8,4.157]
[1746948184459,12.01139235,2492.9,2492.8,4.157]
[1746948185261,12.22949276,2492.9,2492.8,4.157]
[1746948185563,8.21810041,2492.9,2492.8,4.157]
[1746948186959,12.22949276,2492.9,2492.8,4.157]
[1746948187334,8.21810041,2492.9,2492.8,4.157]
[1746948187547,12.22949276,2492.9,2492.8,4.157]
[1746948187747,13.99084659,2492.9,2492.8,4.157]
[1746948187932,4.01235806,2492.3,2492.2,4.158]
[1746948188627,9.06960237,2492.7,2492.2,4.158]
[1746948188958,4.01225496,2492.4,2492.2,4.158]
[1746948189253,8.0,2492.4,2492.2,4.158]
[1746948189439,12.01225011,2492.4,2492.2,4.158]
[1746948189831,4.01235806,2492.3,2492.2,4.158]
[1746948190145,12.01235806,2492.3,2492.2,4.158]
[1746948190471,0.7677,2491.6,2489.9,5.04895545]
[1746948190771,16.85180317,2490.0,2489.9,5.04895545]
[1746948190918,4.132,2490.0,2489.9,5.04895545]
[1746948191123,4.132,2490.3,2489.9,5.04895545]
[1746948191332,4.132,2490.4,2489.9,5.565121]
[1746948191671,4.131,2490.4,2490.0,0.04015891]
[1746948191970,4.131,2490.4,2489.9,0.51616555]
[1746948192177,0.19933643,2491.9,2489.9,0.51616555]
[1746948192455,8.0,2491.1,2490.0,0.1127]
[1746948192753,4.01529266,2490.5,2490.0,4.2727]
[1746948192934,4.132,2490.4,2490.0,4.2727]
[1746948193131,8.14742342,2490.4,2490.0,4.2727]
[1746948193642,4.132,2490.4,2490.0,4.2727]
[1746948193844,4.01558081,2490.3,2490.0,4.2727]
[1746948194045,4.132,2490.4,2490.0,4.2727]
[1746948194254,4.13,2490.3,2490.0,4.2727]
[1746948194424,4.01530677,2490.5,2490.0,4.2727]
[1746948194626,4.13,2490.4,2490.0,4.2727]
[1746948195456,0.55,2490.8,2490.0,4.2727]
[1746948195629,4.13,2490.7,2490.0,4.2727]
[1746948196022,4.01558635,2490.3,2490.0,4.2727]
[1746948196356,4.01526459,2490.5,2490.0,4.25942047]
[1746948196557,4.0154669,2490.4,2490.0,4.25942047]
[1746948196726,4.128,2490.3,2490.0,4.25942047]
[1746948197964,4.01552322,2490.4,2490.0,4.25942047]
[1746948198257,4.01546071,2490.4,2490.0,4.25942047]
[1746948198580,4.01590297,2490.1,2490.0,4.25942047]
[1746948198731,4.01590297,2490.1,2490.0,4.16]
[1746948198935,4.01580788,2490.2,2490.0,4.16]
[1746948199130,1.21577465,2490.4,2490.0,4.16]
[1746948199450,4.80443843,2490.9,2490.0,4.16]
[1746948199651,0.7558,2491.3,2490.1,0.1395552]
[1746948199862,4.126,2491.0,2490.1,8.1395552]
[1746948200229,4.01535876,2490.5,2490.1,0.0994]
[1746948200470,4.126,2491.0,2490.1,0.13955303]
[1746948200671,4.01488462,2490.8,2490.1,2.01430833]
[1746948200980,8.7558,2491.3,2490.1,1.9741553]
[1746948201273,4.124,2491.2,2490.1,9.9741553]
[1746948201429,3.51803892,2491.4,2490.1,10.01430432]
[1746948201632,4.01413909,2491.2,2490.1,10.01430432]
[1746948201832,8.13696993,2491.3,2490.3,8.0994]
[1746948202158,4.01464379,2490.9,2490.3,8.0994]
[1746948202333,4.01446888,2491.0,2490.3,8.0994]
[1746948202538,4.123,2491.3,2490.3,8.0994]
[1746948202741,0.55,2491.5,2490.4,0.0401455]
[1746948202940,4.122,2491.4,2490.5,0.0994]
[1746948203146,4.01374097,2491.5,2490.6,0.04014288]
[1746948203365,8.13586179,2491.4,2490.6,0.04014288]
[1746948203562,4.01320674,2491.8,2490.6,0.040141]
[1746948203776,2.60474844,2492.7,2491.1,8.0]
[1746948203937,0.26047484,2492.6,2491.3,8.0994]
[1746948204137,2.60474844,2492.7,2491.6,0.0994]
[1746948204373,2.60474844,2492.7,2491.7,0.04012271]
[1746948204374,4.01181353,2492.7,2491.7,0.04012271]
[1746948204690,4.01181353,2492.7,2491.6,0.0994]
[1746948204691,4.01165028,2492.8,2491.6,0.0994]
[1746948204838,0.7549,2493.0,2491.6,0.0994]
[1746948205034,0.7549,2493.0,2491.7,0.04012426]
[1746948205275,4.01155327,2492.8,2491.7,0.04012422]
[1746948205482,4.12,2492.9,2491.7,0.04012422]
[1746948205936,8.13154278,2492.9,2491.6,0.0994]
[1746948206274,4.01200933,2492.6,2491.6,0.0994]
[1746948206451,4.12,2492.9,2491.6,0.0994]
[1746948206452,4.01219948,2492.4,2491.6,0.0994]
[1746948206772,4.56170424,2492.8,2491.7,0.04012572]
[1746948206952,4.01182737,2492.7,2491.7,0.04012572]
[1746948207377,4.01182737,2492.7,2491.6,2.35414]
[1746948207562,4.01150317,2492.9,2491.6,2.25474]
[1746948207886,4.01220694,2492.4,2491.8,0.0994]
[1746948208037,0.55,2492.8,2491.8,0.0994]
[1746948208237,0.55,2492.6,2491.8,0.0994]
[1746948208543,4.01226842,2492.4,2491.8,0.0994]
[1746948208759,4.56209521,2492.5,2491.8,0.0994]
[1746948208962,4.01199978,2492.6,2491.8,0.0994]
[1746948209164,0.55,2492.8,2491.8,0.0994]
[1746948209349,8.0,2492.7,2491.8,0.0994]
[1746948209554,4.01172078,2492.7,2491.8,0.0994]
[1746948209860,0.55,2492.9,2491.8,0.0994]
[1746948210066,4.01153447,2492.9,2491.8,0.0994]
[1746948210263,4.113,2492.9,2491.9,0.04012106]
[1746948210577,4.113,2492.9,2492.0,4.126]
[1746948210742,4.113,2493.0,2492.1,0.51601211]
[1746948210942,4.76556419,2493.3,2492.1,0.51601211]
[1746948211170,7.52988405,2492.7,2492.1,4.2254]
[1746948211366,4.01198665,2492.6,2492.1,4.2254]
[1746948211575,4.01236065,2492.3,2492.1,4.126]
[1746948211757,0.7548,2492.6,2492.1,4.126]
[1746948211945,0.42728389,2492.5,2492.1,4.126]
[1746948212345,4.01251118,2492.3,2492.1,4.126]
[1746948212575,8.55034085,2492.5,2492.1,4.126]
[1746948212764,4.01226567,2492.4,2492.1,4.126]
[1746948213079,4.01239342,2492.3,2492.1,4.126]
[1746948213277,0.85506773,2492.3,2492.1,4.126]
[1746948213478,4.53828389,2492.5,2492.1,4.126]
[1746948213684,4.01220935,2492.4,2492.1,4.126]
[1746948213985,4.111,2492.5,2492.1,4.126]
[1746948214587,8.0,2492.9,2492.1,4.126]
[1746948214761,12.108,2492.9,2492.2,0.04012497]
[1746948215098,17.68203139,2492.9,2492.3,0.0994]
[1746948215388,9.68203139,2492.9,2492.3,0.0994]
[1746948215769,4.01155327,2492.8,2492.3,0.0994]
[1746948215971,8.0,2492.8,2492.3,0.0994]
[1746948216181,8.11942313,2492.9,2492.3,0.0994]
[1746948216490,13.67285754,2492.9,2492.3,0.0994]
[1746948216796,1.56485754,2492.9,2492.3,0.0994]
[1746948216953,4.30456144,2493.3,2492.4,0.0401216]
[1746948217147,3.51803892,2493.7,2492.4,0.0401216]
[1746948217352,8.0,2493.2,2492.4,0.0401216]
[1746948217589,4.01107055,2493.1,2492.3,0.0994]
[1746948217765,8.0,2493.0,2492.3,0.0994]
[1746948217949,8.0,2493.2,2492.3,0.0994]
[1746948218148,4.01181113,2492.7,2492.3,0.0994]
[1746948218893,8.55,2493.1,2492.3,0.0994]
[1746948219050,8.0,2492.9,2492.3,0.0994]
[1746948219387,4.01115459,2493.1,2492.3,0.0994]
[1746948219592,16.11395792,2493.2,2492.3,0.0994]
[1746948219754,12.103,2493.2,2492.4,0.0401152]
[1746948220193,12.103,2493.2,2492.3,0.0994]
[1746948220562,3.51803892,2492.9,2492.3,0.0994]
[1746948220788,8.0,2492.4,2492.3,0.0994]
[1746948220951,12.01219707,2492.4,2492.3,0.0994]
[1746948221161,8.0,2492.5,2492.3,0.0994]
[1746948221504,12.01155327,2492.8,2492.3,0.0994]
[1746948221691,4.01178392,2492.7,2492.3,0.0994]
[1746948221890,4.01195843,2492.6,2492.3,0.0994]
[1746948222075,12.01156725,2492.8,2492.3,0.0994]
[1746948222278,1.55296062,2492.7,2492.3,0.0994]
[1746948222898,8.0,2492.5,2492.3,0.0994]
[1746948223704,5.56472182,2492.7,2492.3,0.0994]
[1746948224067,1.55296062,2492.7,2492.3,0.0994]
[1746948224262,8.0,2492.8,2492.3,0.0994]
[1746948225097,4.0117142,2492.7,2492.3,0.0994]
[1746948225299,8.0,2492.8,2492.3,0.0994]
[1746948226782,7.49265837,2493.2,2492.3,0.0994]
[1746948226993,8.0,2493.1,2492.3,0.0994]
[1746948227311,4.01077047,2493.3,2492.3,0.0994]
[1746948227670,8.0,2493.2,2492.3,0.0994]
[1746948227980,8.0,2493.2,2492.4,0.04011219]
[1746948228176,4.01091015,2493.2,2492.3,0.0994]
[1746948228593,12.01080892,2493.3,2492.4,0.04011221]
[1746948228793,12.0106551,2493.4,2492.4,0.04011221]
[1746948229179,4.01091074,2493.2,2492.3,0.0994]
[1746948229365,12.0106551,2493.4,2492.3,0.0994]
[1746948229570,8.0,2493.4,2492.4,0.04011225]
[1746948229802,12.0106703,2493.4,2492.5,0.0994]
[1746948229981,12.0106703,2493.4,2492.6,0.04011222]
[1746948230180,9.98098741,2493.4,2492.6,0.04011222]
[1746948230379,8.0,2493.4,2492.6,0.04011167]
[1746948230602,8.0,2493.4,2492.5,0.0994]
[1746948230768,3.39865837,2493.5,2492.5,0.0994]
[1746948231199,8.0,2493.4,2492.5,0.0994]
[1746948231789,3.39865837,2493.5,2492.5,0.0994]
[1746948232286,8.0,2493.4,2492.6,0.04010703]
[1746948232688,8.0,2493.4,2492.5,0.0994]
[1746948233114,4.01061572,2493.4,2492.5,0.0994]
[1746948233324,7.40919919,2493.5,2492.5,0.0994]
[1746948233522,3.39865837,2493.5,2492.6,0.04011093]
[1746948234014,4.01066827,2493.4,2492.5,0.0994]
[1746948234214,0.0072662,2494.0,2492.5,0.0994]
[1746948234419,4.00978387,2493.9,2492.5,0.0994]
[1746948234592,0.36250639,2493.9,2492.5,0.0994]
[1746948234921,0.21750249,2493.8,2492.5,0.0994]
[1746948235278,4.22760795,2493.7,2492.5,8.0994]
[1746948235477,0.21750249,2493.7,2492.5,8.0994]
[1746948235682,4.22769538,2493.7,2492.5,8.0994]
[1746948236019,0.21750249,2493.7,2492.6,0.13950546]
[1746948236531,3.39865837,2493.8,2492.7,0.0994]
[1746948236827,4.01692251,2494.0,2492.9,8.0994]
[1746948237130,0.21735302,2493.9,2493.0,1.26315215]
[1746948237429,4.01010546,2493.7,2493.0,1.26315305]
[1746948237598,3.39865837,2493.8,2493.0,1.26315305]
[1746948237791,3.39865837,2493.8,2493.0,1.22305045]
[1746948237992,0.0072662,2494.0,2493.0,1.22305045]
[1746948238307,0.0072662,2494.0,2493.2,0.0994]
[1746948238503,0.0072662,2494.0,2493.3,14.47609939]
[1746948238716,0.0072662,2494.0,2493.3,14.436]
[1746948239716,0.0072662,2494.0,2493.4,0.0994]
[1746948239926,0.0072662,2494.0,2493.5,4.09]
[1746948240130,0.0072662,2494.0,2493.6,0.46304674]
[1746948240635,0.0072662,2494.0,2493.7,0.0994]
[1746948241995,0.0072662,2494.0,2493.8,0.04009454]
[1746948243607,0.0072662,2494.0,2493.7,0.0994]
[1746948244508,0.0072662,2494.0,2493.8,0.04008947]
[1746948246527,0.0072662,2494.0,2493.9,0.0994]
[1746948251750,0.0072662,2494.0,2493.5,4.09]
[1746948251751,0.0072662,2494.0,2493.5,4.1894]
[1746948251925,0.0072662,2494.0,2493.5,4.09]
[1746948252125,4.01697321,2494.0,2493.5,4.09]
[1746948252508,7.40847748,2493.9,2493.5,4.09]
[1746948252749,3.39865837,2493.9,2493.5,4.09]
[1746948253624,4.83201343,2494.0,2493.5,4.09]
[1746948253625,0.0072662,2494.0,2493.6,8.54849927]
[1746948253840,0.0072662,2494.0,2493.6,0.5084]
[1746948254041,0.0072662,2494.0,2493.6,0.0994]
[1746948254349,0.0072662,2494.0,2493.8,8.0]
[1746948255149,0.0072662,2494.0,2493.9,0.04009413]
[1746948256770,0.0072662,2494.0,2493.9,4.089]
[1746948259374,0.0072662,2494.0,2493.6,0.0994]
[1746948259555,0.0072662,2494.0,2493.8,8.0]
[1746948259954,4.01691462,2494.0,2493.7,4.05]
[1746948260151,4.41860608,2494.0,2493.7,4.05]
[1746948260884,5.17580608,2494.0,2493.7,4.05]
[1746948261091,1.16615766,2494.0,2493.7,4.05]
[1746948261290,5.17582769,2494.0,2493.7,4.05]
[1746948261456,4.00982431,2493.9,2493.7,4.05]
[1746948261657,4.22739613,2493.9,2493.7,4.05]
[1746948262081,0.21757182,2493.9,2493.7,4.05]
[1746948262599,0.0072662,2494.0,2493.7,4.05]
[1746948262905,0.80988021,2494.0,2493.7,4.05]
[1746948263105,0.0072662,2494.0,2493.7,4.05]
[1746948263605,4.22753096,2493.9,2493.7,4.05]
[1746948264167,0.806,2493.8,2493.7,4.05]
[1746948265103,0.806,2493.8,2493.3,14.436]
[1746948265309,0.806,2493.8,2493.4,4.051]
[1746948265724,4.01020566,2493.7,2493.5,4.051]
[1746948265919,0.88261009,2493.7,2493.3,14.436]
[1746948266227,3.39865837,2493.5,2492.9,4.051]
[1746948266587,0.21751852,2493.4,2492.9,4.051]
[1746948266820,4.22813294,2493.4,2492.9,4.051]
[1746948267024,0.36255555,2493.3,2492.9,4.051]
[1746948267692,4.37334963,2493.3,2492.9,4.051]
[1746948267893,4.0109208,2493.2,2492.9,4.051]
[1746948268115,4.01111974,2493.1,2492.9,4.051]
[1746948268316,4.01129699,2493.0,2492.9,4.051]
[1746948268835,7.88819785,2493.2,2492.3,14.431]
[1746948269126,7.88819785,2493.2,2492.4,4.051]
[1746948269327,7.91324045,2493.2,2492.4,4.051]
[1746948269530,4.0115133,2492.9,2492.4,4.051]
[1746948269827,0.7749,2492.8,2492.5,4.051]
[1746948270241,4.31043018,2493.5,2492.5,5.8992]
[1746948270432,0.7749,2493.4,2492.6,0.13952048]
[1746948270632,4.7854986,2493.4,2492.6,0.13952048]
[1746948270838,0.7749,2493.4,2492.6,8.13952048]
[1746948271048,4.17355837,2493.4,2492.6,8.0994]
[1746948271247,0.7749,2493.4,2492.7,1.4399745]
[1746948271436,0.7749,2493.4,2492.7,1.39986]
[1746948272045,4.78558268,2493.4,2492.7,1.39986]
[1746948272247,4.78557266,2493.4,2492.7,1.39986]
[1746948272436,4.01075984,2493.3,2492.6,8.0994]
[1746948272636,0.7749,2493.4,2492.6,8.0994]
[1746948272836,4.01085035,2493.3,2492.6,8.0994]
[1746948273030,0.7749,2493.4,2492.6,8.0994]
[1746948273279,3.39865837,2493.2,2492.3,14.431]
[1746948273476,4.01079051,2493.3,2492.7,4.052]
[1746948273777,4.78556092,2493.4,2492.7,4.052]
[1746948274136,3.39865837,2493.2,2492.7,4.052]
[1746948274471,7.40972166,2493.2,2492.7,4.052]
[1746948274777,3.39865837,2493.2,2493.0,1.49]
[1746948275072,4.01107055,2493.1,2493.0,1.49]
[1746948275373,5.15313616,2493.1,2493.0,1.49]
[1746948275671,5.70313616,2493.1,2493.0,1.49]
[1746948276035,6.51793616,2493.1,2493.0,1.49]
[1746948276235,10.54493616,2493.1,2493.0,1.49]
[1746948276455,18.54493616,2493.1,2493.0,0.6567]
[1746948276672,18.95979887,2493.1,2493.0,0.6567]
[1746948276967,19.32120078,2493.1,2493.0,0.6567]
[1746948278066,23.54520078,2493.1,2493.0,0.6567]
[1746948278278,19.32120078,2493.1,2493.0,0.6567]
[1746948278635,19.12317959,2493.1,2493.0,0.6567]
[1746948279172,14.54617959,2493.1,2493.0,0.6567]
[1746948279349,13.40411398,2493.1,2493.0,0.6567]
[1746948279543,5.40411398,2493.1,2493.0,0.6567]
[1746948279951,5.04271207,2493.1,2493.0,0.6567]
[1746948280139,4.82587055,2493.1,2493.0,0.6567]
[1746948280656,7.40963957,2493.2,2493.0,0.6567]
[1746948280857,4.01107055,2493.1,2493.0,0.6567]
[1746948282143,7.4096387,2493.2,2493.0,0.6567]
[1746948282339,4.01107055,2493.1,2493.0,0.6567]
[1746948284456,7.40965641,2493.2,2493.0,0.6567]
[1746948284656,4.48284314,2493.7,2493.1,4.052]
[1746948284875,4.01043213,2493.5,2493.1,4.052]
[1746948285589,1.08418477,2493.7,2493.1,4.60483]
[1746948285765,5.0943899,2493.7,2493.1,4.60483]
[1746948285971,4.01028271,2493.6,2493.1,4.052]
[1746948286167,4.30730953,2493.7,2493.1,4.052]
[1746948286371,3.39865837,2493.8,2493.1,4.052]
[1746948286570,4.01027725,2493.6,2493.1,4.052]
[1746948287073,3.39865837,2493.8,2493.1,4.052]
[1746948287271,0.55699494,2493.7,2493.1,4.052]
[1746948287694,4.01057641,2493.5,2493.1,4.052]
[1746948287906,3.39865837,2493.5,2493.1,4.052]
[1746948288107,4.01085207,2493.3,2493.1,4.052]
[1746948288404,4.79771446,2493.4,2493.1,4.052]
[1746948288697,1.18708425,2493.7,2493.1,4.052]
[1746948289065,4.64729042,2493.7,2493.1,4.052]
[1746948289802,4.0102894,2493.6,2493.1,4.052]
[1746948289987,4.01046579,2493.5,2493.1,4.052]
[1746948290295,4.0103187,2493.6,2493.1,4.052]
[1746948290495,8.19585573,2493.8,2493.2,0.8196]
[1746948290804,4.01013231,2493.7,2493.2,0.8196]
[1746948291005,4.01036337,2493.6,2493.2,0.8196]
[1746948291207,4.01054004,2493.5,2493.1,4.052]
[1746948291697,4.01033537,2493.6,2493.1,4.052]
[1746948292368,4.01051774,2493.5,2493.1,4.052]
[1746948292789,1.51469104,2493.7,2493.1,4.052]
[1746948292959,7.40865817,2493.8,2493.1,4.60483]
[1746948293286,0.21757211,2493.7,2493.1,4.60483]
[1746948293682,4.01011839,2493.7,2493.1,4.60483]
[1746948293887,4.01028405,2493.6,2493.1,4.60483]
[1746948294090,7.40864967,2493.8,2493.1,4.60483]
[1746948294091,4.01044879,2493.5,2493.1,4.60483]
[1746948294264,4.01044879,2493.5,2493.1,4.052]
[1746948294461,4.3106023,2493.7,2493.1,4.052]
[1746948294866,4.01026628,2493.6,2493.1,4.052]
[1746948295099,3.39865837,2493.8,2493.2,0.04010883]
[1746948295315,4.37290275,2493.7,2493.1,4.052]
[1746948295503,0.36278745,2493.7,2493.1,4.60483]
[1746948295883,0.21773073,2493.6,2493.1,4.052]
[1746948296208,0.21773073,2493.6,2493.1,4.09210748]
[1746948296427,0.21773073,2493.6,2493.1,4.052]
[1746948296590,4.01018907,2493.7,2493.1,4.052]
[1746948296927,7.70276573,2493.8,2493.1,4.052]
[1746948297083,4.01021843,2493.7,2493.1,4.052]
[1746948297279,4.01055959,2493.5,2493.1,4.052]
[1746948298123,4.01066772,2493.4,2493.1,4.052]
[1746948298480,0.8094,2493.6,2493.1,4.052]
[1746948298718,7.62492427,2493.5,2493.1,4.052]
[1746948299028,0.84343243,2493.4,2493.1,4.052]
[1746948299819,4.01077378,2493.3,2493.1,4.052]
[1746948300020,4.01090967,2493.2,2493.1,4.052]
[1746948300439,7.4073113,2493.5,2493.1,4.052]
[1746948300597,4.22823641,2493.4,2493.1,4.052]
[1746948300932,4.01090967,2493.2,2493.1,4.052]
[1746948301407,4.01107055,2493.1,2493.0,0.6567]
[1746948301605,4.77870783,2493.1,2493.0,0.6567]
[1746948301811,5.58810783,2493.1,2493.0,0.6567]
[1746948302010,5.95083325,2493.1,2493.0,0.6567]
[1746948302328,6.10338984,2493.1,2493.0,0.6567]
[1746948302506,6.65338984,2493.1,2493.0,0.6567]
[1746948302911,15.48618984,2493.1,2493.0,0.6567]
[1746948304894,4.01219707,2492.4,2492.3,4.009]
[1746948305102,0.5803627,2493.1,2492.4,0.7606]
[1746948305337,0.21763728,2493.0,2492.5,0.51707964]
[1746948305512,0.21763728,2493.0,2492.5,0.47696]
[1746948305710,0.21763728,2493.0,2492.5,0.51707609]
[1746948306039,3.39680216,2493.5,2492.5,0.51707609]
[1746948306211,4.01134636,2493.0,2492.4,0.7606]
[1746948306535,4.01093213,2493.2,2492.5,0.04011742]
[1746948306901,4.01076877,2493.3,2492.5,0.0401145]
[1746948307246,0.55,2493.4,2492.5,0.0401145]
[1746948307539,4.0120361,2492.5,2492.3,4.009]
[1746948307843,0.8328,2493.0,2492.3,4.009]
[1746948307844,4.01169203,2492.8,2492.3,4.009]
[1746948308030,4.01214295,2492.5,2492.3,4.009]
[1746948308345,4.01177856,2492.7,2492.3,4.009]
[1746948308708,4.01139736,2492.9,2492.4,0.04012139]
[1746948309040,4.01214527,2492.5,2492.3,4.009]
[1746948309242,0.79923974,2492.9,2492.3,4.009]
[1746948309604,0.36291056,2492.8,2492.3,4.009]
[1746948309817,4.01216566,2492.5,2492.3,4.009]
[1746948310424,4.01219707,2492.4,2492.3,4.009]
[1746948310606,4.01210055,2492.5,2492.3,4.009]
[1746948310829,4.01157133,2492.8,2492.3,4.009]
[1746948311033,4.01187902,2492.6,2492.3,4.009]
[1746948311219,0.36261772,2492.7,2492.3,4.009]
[1746948311220,0.58018888,2492.7,2492.3,4.009]
[1746948311432,4.01211222,2492.5,2492.3,4.009]
[1746948311644,4.0119118,2492.6,2492.3,4.009]
[1746948312040,0.79923974,2492.9,2492.3,4.009]
[1746948312227,4.01211158,2492.5,2492.3,4.009]
[1746948312542,1.03821799,2492.8,2492.3,4.009]
[1746948312734,4.01205979,2492.5,2492.3,4.009]
[1746948312953,4.01219707,2492.4,2492.3,4.009]
[1746948313734,4.01205315,2492.5,2491.9,4.009]
[1746948313735,3.39680216,2492.5,2491.9,4.009]
[1746948313908,4.01241595,2492.3,2491.9,4.009]
[1746948314251,4.37468051,2492.4,2491.9,4.009]
[1746948314548,0.36233986,2492.4,2491.9,4.41391254]
[1746948314857,0.30473693,2492.5,2491.9,4.41391254]
[1746948315009,4.01284109,2492.0,2491.9,4.009]
[1746948315959,4.01348531,2491.6,2491.5,4.01]
[1746948316116,7.41020816,2491.7,2491.0,4.7706]
[1746948316447,4.01423703,2491.2,2491.0,4.7706]
[1746948316810,5.11032723,2491.7,2491.0,4.7706]
[1746948317013,3.968,2491.7,2491.0,4.7706]
[1746948317216,4.01320843,2491.8,2491.0,4.7706]
[1746948317451,3.967,2491.9,2491.2,0.7606]
[1746948317623,3.967,2491.9,2491.3,0.04013417]
[1746948317821,4.01299408,2492.0,2491.3,0.04013417]
[1746948318022,4.01299408,2492.0,2491.2,0.7606]
[1746948318560,4.0124408,2492.3,2491.4,0.7606]
[1746948319062,8.0,2492.7,2491.5,0.04012689]
[1746948319215,8.0,2492.7,2491.4,0.7606]
[1746948319417,0.55,2492.7,2491.5,0.04012687]
[1746948319650,0.21722068,2492.6,2491.3,0.7714]
[1746948319853,4.0123748,2492.3,2491.3,0.7714]
[1746948320057,0.55,2492.5,2491.3,0.7714]
[1746948320257,4.01259537,2492.2,2491.4,0.47344]
[1746948321047,4.01241132,2492.3,2491.5,0.7714]
[1746948321247,4.01226933,2492.4,2491.5,0.7714]
[1746948321457,4.01253998,2492.2,2491.5,0.7714]
[1746948321856,4.01269443,2492.1,2491.5,0.7714]
[1746948322227,4.01290394,2492.0,2491.5,0.7714]
[1746948322423,4.01219707,2492.4,2491.5,0.7714]
[1746948322666,1.00621971,2492.3,2491.5,0.7714]
[1746948322974,4.01341453,2491.7,2491.5,0.7714]
[1746948323125,4.01342276,2491.7,2491.2,0.7921]
[1746948323334,4.01376251,2491.5,2491.2,0.7921]
[1746948323972,4.01396861,2491.3,2491.0,4.01]
[1746948324127,4.01412973,2491.2,2491.1,3.964]
[1746948324639,4.01440511,2491.1,2490.6,14.439]
[1746948324961,4.01448224,2491.0,2490.8,0.7921]
[1746948325169,4.01448224,2491.0,2490.6,14.439]
[1746948325527,0.85435819,2491.2,2490.6,14.439]
[1746948325729,4.15740216,2491.0,2490.6,14.439]
[1746948326168,4.01493556,2490.7,2490.6,14.439]
[1746948326658,4.56493556,2490.7,2490.6,14.439]
[1746948326855,0.7606,2491.0,2490.6,14.439]
[1746948327058,7.96610877,2491.3,2490.6,14.439]
[1746948327246,7.96610877,2491.3,2490.6,16.35851]
[1746948327444,3.952,2491.3,2490.7,8.04014703]
[1746948327658,3.952,2491.3,2490.8,0.8306]
[1746948329172,4.01421558,2491.2,2490.8,0.8306]
[1746948329332,4.01421602,2491.2,2490.8,0.8306]
[1746948329981,4.8109628,2491.1,2490.7,3.965]
[1746948330307,4.01450865,2491.0,2490.7,3.965]
[1746948330462,4.01471138,2490.9,2490.7,3.965]
[1746948330632,0.7966216,2491.1,2490.7,3.965]
[1746948330972,11.65980957,2491.5,2490.7,3.965]
[1746948331265,4.01383642,2491.4,2490.7,3.965]
[1746948331578,7.34380216,2491.5,2490.7,3.965]
[1746948332177,4.01454186,2491.0,2490.7,3.965]
[1746948333298,7.34380216,2491.5,2490.7,3.965]
[1746948333482,0.78938022,2491.4,2490.7,3.965]
[1746948333687,4.48815606,2491.7,2490.7,3.965]
[1746948334008,4.01353955,2491.6,2490.7,4.00514715]
[1746948334298,4.01365937,2491.5,2490.7,3.965]
[1746948334802,4.37516894,2491.6,2490.7,3.965]
[1746948335107,4.01334487,2491.7,2490.8,8.8306]
[1746948335408,4.56332423,2491.7,2490.8,8.8306]
[1746948335561,4.01372878,2491.5,2490.8,8.8306]
[1746948336060,7.96012639,2491.7,2490.8,8.8306]
[1746948336061,4.01354497,2491.6,2490.8,8.8306]
[1746948336266,3.39680216,2491.7,2490.8,8.8306]
[1746948336496,4.53210133,2491.7,2490.8,11.746406]
[1746948336999,4.53210133,2491.7,2490.9,0.0401419]
[1746948337202,4.01365107,2491.5,2490.8,8.8306]
[1746948337499,4.01352357,2491.6,2490.8,0.8306]
[1746948337665,4.01351288,2491.6,2490.8,8.87074191]
[1746948338001,4.01377706,2491.5,2490.8,0.8306]
[1746948338168,1.23686055,2491.6,2490.8,8.8306]
[1746948338368,4.01373773,2491.5,2490.8,8.8306]
[1746948338571,1.23686055,2491.6,2490.8,8.8306]
[1746948338904,4.01378768,2491.5,2490.8,8.8306]
[1746948339115,4.01364639,2491.5,2490.8,8.8306]
[1746948339307,4.01349388,2491.6,2490.8,8.8306]
[1746948339506,3.39680216,2491.7,2490.8,8.87074386]
[1746948339800,0.21805106,2491.6,2490.8,8.87074386]
[1746948339963,0.21805106,2491.6,2490.8,11.59821825]
[1746948340166,0.21805106,2491.6,2490.8,11.55807439]
[1746948340378,4.01322766,2491.8,2490.9,0.04014188]
[1746948340724,8.4960485,2491.9,2491.0,0.7721]
[1746948340930,4.37699885,2491.7,2491.0,0.7721]
[1746948341702,0.36359928,2491.7,2491.0,0.7721]
[1746948341926,0.36359928,2491.7,2491.0,1.92607132]
[1746948342225,4.01322495,2491.8,2491.0,1.92607132]
[1746948342724,4.23167929,2491.7,2491.0,1.92607132]
[1746948342886,0.21832598,2491.7,2491.0,1.92607132]
[1746948343618,0.21832598,2491.6,2491.0,1.92607132]
[1746948343790,0.21832598,2491.6,2491.1,0.99662102]
[1746948343992,0.21832598,2491.6,2491.2,3.965]
[1746948343993,4.23182073,2491.6,2491.2,3.965]
[1746948344623,0.21832598,2491.5,2491.2,3.965]
[1746948345120,0.21832598,2491.8,2491.2,3.965]
[1746948345320,4.23153127,2491.8,2491.2,3.965]
[1746948345745,0.21832598,2491.7,2491.2,3.965]
[1746948346132,4.37792229,2491.6,2491.2,3.965]
[1746948346320,0.21832598,2491.5,2491.2,3.965]
[1746948349049,0.21832598,2491.6,2491.2,3.965]
[1746948349917,4.01366119,2491.5,2491.2,3.965]
[1746948350135,0.21832598,2491.6,2491.2,3.965]
[1746948350836,0.21832598,2491.7,2491.2,3.965]
[1746948351045,4.01364084,2491.6,2491.2,3.965]
[1746948351340,0.55,2491.3,2490.7,0.7598]
[1746948351545,4.01461983,2490.9,2490.7,0.7598]